Cogmind - Beta 11.1 @@@ ROGUE MODE // 2022.09.27 @ 15:18:20 Player: Zirov Result: Self-destructed Performance ------------- Evolutions (4) 2000 Regions Visited (7) 1400 Robots Destroyed (37) 185 Value Destroyed (1195) 1195 Prototype IDs (26) 520 Alien Tech Used (0) 0 Bonus (300) 300 TOTAL SCORE: 5600 Bonus ------- Aligned with FarCom 300 Cogmind --------- Core Integrity 802/850 Matter 300/300 Energy 290/290 System Corruption 2% Temperature Cool (0) Movement Walking (125) Location -6/Factory Parts ------- > --- POWER (1) -------- Improved Deuterium Engine > --- PROPULSION (4) --- Carbon-fiber Leg Carbon-fiber Leg Titanium Leg Improved Titanium Leg > --- UTILITY (8) ------ Advanced Heat Sink Lightpack 2.0 Improved Medium Armor Plating Medium Reflective Plating Hacking Suite System Shield > --- WEAPON (2) ------- Assault Cannon Advanced Assault Cannon > --- INVENTORY (40) --- Light Angular Momentum Engine Aluminum Leg Improved Carbon-fiber Leg Armored Huge Wheel Gravmag System Power Amplifier Improved Heat Sink Advanced Heat Sink Coolant Injector Coolant Injector Improved Trap Scanner Seismic Detector Matter Filter Improved Medium Armor Plating Improved Powered Armor System Shield Component Analysis Suite Corruption Screen System Restoration Module Long-range Tractor Beam Improved Trap Extractor (0/6) Heavy EM Shotgun Medium Laser Gauss Rifle Precision Assault Rifle Katana Katana Chainsword Chainsword Peak State ------------ > --- POWER ------------ Improved Deuterium Engine > --- PROPULSION ------- Carbon-fiber Leg Carbon-fiber Leg Titanium Leg Improved Titanium Leg > --- UTILITY ---------- Advanced Heat Sink Lightpack 2.0 Improved Medium Armor Plating Medium Reflective Plating Hacking Suite System Shield > --- WEAPON ----------- Assault Cannon Advanced Assault Cannon > --- INVENTORY -------- Light Angular Momentum Engine Aluminum Leg Improved Carbon-fiber Leg Armored Huge Wheel Gravmag System Power Amplifier Improved Heat Sink Coolant Injector Coolant Injector Improved Trap Scanner Matter Filter Improved Medium Armor Plating Improved Powered Armor System Shield Component Analysis Suite Corruption Screen Long-range Tractor Beam Improved Trap Extractor Drone Bay Heavy EM Shotgun Medium Laser Gauss Rifle Precision Assault Rifle Katana Katana Chainsword Chainsword Chainsword [Rating: 84] Favorites ----------- Power Light Nuclear Core Engine Improved Deuterium Engine Power Core Light Nuclear Core Propulsion Advanced Treads Treads Advanced Treads Leg Aluminum Leg Utility Lightpack 2.0 Device Improved Heat Sink Storage Lightpack 2.0 Processor Visual Processing Unit Hackware Hacking Suite Protection Improved Medium Armor Plating Weapon Advanced Assault Cannon Energy Gun Medium Laser Ballistic Cannon Advanced Assault Cannon Launcher Rocket Launcher Slashing Weapon Chainsword Build | -11 -10 -10 -10 -9 -8 -7 -6 ------- Run | Scr Mat Min Exi Min Mat Fac Fac Slots Evolved 8 | . . . . . 4 2 2 Power . | . . . . . . . . Propulsion 2 | . . . . . 2 . . Utility 6 | . . . . . 2 2 2 Weapon . | . . . . . . . . Parts Attached 71 | 6 1 8 6 . 6 34 10 Power 11 | 1 . 1 . . 1 8 . Engine 8 | 1 . 1 . . 1 5 . Core 3 | . . . . . . 3 . Reactor . | . . . . . . . . Propulsion 31 | 2 . 4 4 . 1 16 4 Treads 7 | . . . . . . 7 . Leg 24 | 2 . 4 4 . 1 9 4 Wheel . | . . . . . . . . Hover . | . . . . . . . . Flight . | . . . . . . . . Utility 16 | 1 . 2 1 . 1 5 6 Device 7 | . . . . . . 3 4 Storage 4 | 1 . 1 1 . 1 . . Processor 1 | . . 1 . . . . . Hackware 2 | . . . . . . 1 1 Protection 2 | . . . . . . 1 1 Artifact . | . . . . . . . . Weapon 13 | 2 1 1 1 . 3 5 . Energy Gun 4 | 2 . 1 1 . . . . Energy Cannon . | . . . . . . . . Ballistic Gun . | . . . . . . . . Ballistic Cannon 3 | . 1 . . . . 2 . Launcher 3 | . . . . . 1 2 . Special Weapon . | . . . . . . . . Impact Weapon . | . . . . . . . . Slashing Weapon 3 | . . . . . 2 1 . Piercing Weapon . | . . . . . . . . Special Melee Weapon . | . . . . . . . . Unidentified Prototypes 1 | . . . 1 . . . . Parts Lost 15 | . . 6 . . . 8 1 Power 3 | . . 1 . . . 2 . Propulsion 9 | . . 3 . . . 5 1 Utility . | . . . . . . . . Weapon 3 | . . 2 . . . 1 . Highest Loss Streak 6 | . . 6 . . . 3 1 To Critical Strikes . | . . . . . . . . Average Slot Usage (%) 81 | . 85 83 84 100 69 79 84 Engine 5 | . 14 11 14 14 9 . 6 Core 2 | . . . . . . 6 . Treads 9 | . . . . . . 20 3 Leg 16 | . 28 24 27 28 24 5 21 Device 3 | . . . . . . 5 6 Storage 8 | . 14 14 14 14 8 7 6 Processor 5 | . . 8 14 14 9 7 . Hackware 6 | . . . . . . 7 13 Protection 4 | . . . . . . 1 12 Energy Gun 3 | . 14 14 14 28 1 . . Ballistic Cannon 9 | . 13 9 . . . 10 13 Launcher 1 | . . . . . 8 1 . Slashing Weapon 1 | . . . . . 7 2 . Naked Turns . | . . . . . . . . Heaviest Build 41 | 14 15 20 16 16 15 33 41 Greatest Support 88 | 20 20 20 60 20 35 88 67 Greatest Overweight (x) 1 | . . 1 . . . 1 . Average Overweight (x) . | . . . . . . . . Largest Inventory Capacity 40 | 8 8 10 10 10 40 40 40 Average Capacity 32 | 6 8 9 10 10 39 40 40 Most Carried 30 | . 2 6 6 5 15 29 30 Average Carried 16 | . 1 3 3 4 9 18 27 Final Capacity 40 | 8 8 10 10 10 40 40 40 Final Carried 30 | . 2 2 4 5 15 28 30 Class Distribution -------------------- 76% | Hauler-Mutant 23% | Mutant Dominant Class ---------------- Mutant | -10/Materials Mutant | -10/Mines Mutant | -10/Exiles Mutant | -9/Mines Hauler-Mutant | -8/Materials Hauler-Mutant | -7/Factory Hauler-Mutant | -6/Factory Resources | -11 -10 -10 -10 -9 -8 -7 -6 ----------- Run | Scr Mat Min Exi Min Mat Fac Fac Matter Collected 1419 | 210 84 110 . . 57 604 354 Remotely . | . . . . . . . . Salvage Created 1324 | . 41 109 . . 57 784 333 Parts 68 | . 12 3 . . 2 39 12 Haulers Intercepted 1 | . . . . . 1 . . Recyclers Shooed 1 | . . . . . . . 1 Parts Field Recycled . | . . . . . . . . Retrieved Matter . | . . . . . . . . Parts Self-Destructed . | . . . . . . . . Prevented . | . . . . . . . . Kills | -11 -10 -10 -10 -9 -8 -7 -6 ------- Run | Scr Mat Min Exi Min Mat Fac Fac Combat Hostiles Destroyed 26 | . 3 3 . . . 15 5 Melee 7 | . . . . . . 7 . Guns 2 | . 1 1 . . . . . Cannons 17 | . 2 2 . . . 8 5 Classes Destroyed 9 | . 2 1 . . 1 4 1 Worker 3 | . . . . . . 3 . Hauler 1 | . . . . . 1 . . Recycler 3 | . . . . . . 2 1 Operator 1 | . . . . . . . 1 Watcher 3 | . 1 . . . . 2 . Swarmer 7 | . 3 . . . . 4 . Grunt 9 | . . 2 . . . 4 3 Sentry 5 | . . . . . . 4 1 Programmer 4 | . . . . . . 3 1 Best Kill Streak 6 | . 4 2 . . 1 6 4 Combat Bots Only 4 | . 3 2 . . . 4 3 Max Kills in Single Turn 1 | . 1 1 . . 1 1 1 Gunslinging . | . . . . . . . . Exploded . | . . . . . . . . Melee 1 | . . . . . . 1 . Uniques/NPCs Destroyed 1 | . . 1 . . . . . YI-UF0 (-10/Mines) Combat | -11 -10 -10 -10 -9 -8 -7 -6 -------- Run | Scr Mat Min Exi Min Mat Fac Fac Damage Taken 2580 | . 48 828 . . . 1431 273 Core 441 | . 16 167 . . . 210 48 Absorbed by Shields . | . . . . . . . . Core Remaining (%) 74 | 100 . . . 26 100 70 . Volleys Fired 68 | . 6 20 . . . 20 22 Largest 2 | . 2 2 . . . 2 2 Hottest 92 | . 85 85 . . . 92 92 Shots Fired 134 | . 12 35 . . . 42 45 Gun 26 | . 6 20 . . . . . Cannon 108 | . 6 15 . . . 42 45 Launcher . | . . . . . . . . Special . | . . . . . . . . Kinetic 108 | . 6 15 . . . 42 45 Thermal 26 | . 6 20 . . . . . Explosive . | . . . . . . . . Electromagnetic . | . . . . . . . . Robot Hit Streak 9 | . 4 8 . . . 9 8 Robot Miss Streak 3 | . 3 3 . . . 2 2 Penetration Max . | . . . . . . . . Secondary Targets . | . . . . . . . . Shots Hit Robots 117 | . 7 23 . . 3 55 29 Core Hits 50 | . 4 7 . . 1 26 12 Critical Kills . | . . . . . . . . Critical Parts Destroyed . | . . . . . . . . Critical Strikes 8 | . 1 1 . . . 5 1 Burn 2 | . 1 1 . . . . . Blast 3 | . . . . . . 2 1 Sever 3 | . . . . . . 3 . Melee Attacks 37 | . . . . . 4 33 . Impact . | . . . . . . . . Slashing 37 | . . . . . 4 33 . Piercing . | . . . . . . . . Sneak Attacks 6 | . . . . . 2 4 . Combat Hostiles . | . . . . . . . . Follow-up Attacks 1 | . . . . . . 1 . Damage Inflicted 3249 | . 132 345 . . 167 1881 724 Guns 181 | . 38 143 . . . . . Cannons 1768 | . 94 202 . . . 748 724 Explosions . | . . . . . . . . Melee 1291 | . . . . . 167 1124 . Ramming 9 | . . . . . . 9 . Kinetic 1768 | . 94 202 . . . 748 724 Thermal 181 | . 38 143 . . . . . Explosive . | . . . . . . . . Electromagnetic . | . . . . . . . . Impact . | . . . . . . . . Slashing 1291 | . . . . . 167 1124 . Piercing . | . . . . . . . . Highest Corruption 2 | . . . . . . 2 2 Average Corruption 1 | . . . . . . 1 2 Corruption Purged . | . . . . . . . . Corruption Blocked . | . . . . . . . . Effects 21 | . . . . . . 16 5 Message Errors 5 | . . . . . . 3 2 Matter Fused 2 | . . . . . . 2 . Heat Flow Errors 5 | . . . . . . 5 . Energy Discharges 3 | . . . . . . 1 2 Data Loss (minor) 2 | . . . . . . 2 . Misfires 3 | . . . . . . 2 1 Alerts 1 | . . . . . . 1 . Overload Shots . | . . . . . . . . Overflow Damage 136 | . . 1 . . . 113 22 Projectiles 24 | . . 1 . . . 1 22 Explosions . | . . . . . . . . Melee 112 | . . . . . . 112 . Knockbacks 8 | . . 2 . . . 2 4 Impact . | . . . . . . . . Kinetic 8 | . . 2 . . . 2 4 Secondary . | . . . . . . . . Self-Inflicted Damage . | . . . . . . . . Shots . | . . . . . . . . Rammed 2 | . . . . . . 2 . Targets Rammed 3 | . . . . . . 3 . Kicked . | . . . . . . . . Crushed 1 | . . . . . . 1 . Highest Temperature 263 | . 144 164 . . . 263 4 Average Temperature 72 | . 74 67 . . . 78 4 Received Heat Transfer 582 | . . 33 . . . 429 120 Siege Activations . | . . . . . . . . Robots Corrupted . | . . . . . . . . Combat Hostiles . | . . . . . . . . Parts Fried . | . . . . . . . . Impact Corruptions . | . . . . . . . . Robots Melted . | . . . . . . . . Combat Hostiles . | . . . . . . . . Parts Melted . | . . . . . . . . Heat Transferred 655 | . 185 470 . . . . . Parts Sabotaged . | . . . . . . . . Parts Stolen . | . . . . . . . . Parts Stripped . | . . . . . . . . Power Chain Reactions . | . . . . . . . . Missiles Intercepted . | . . . . . . . . Alert | -11 -10 -10 -10 -9 -8 -7 -6 ------- Run | Scr Mat Min Exi Min Mat Fac Fac Peak Influence 227 | . 83 81 . . 41 227 154 Initial 61 | . . 31 . . . 18 61 Average 67 | . 32 60 . . 21 98 53 Maximum Alert Level 1 | . . . . . . 1 . Low Security (%) 97 | 100 100 100 . 100 100 94 100 Level 1 2 | . . . . . . 5 . Level 2 . | . . . . . . . . Level 3 . | . . . . . . . . Level 4 . | . . . . . . . . Level 5 . | . . . . . . . . High Security . | . . . . . . . . Max Security . | . . . . . . . . Squads Dispatched 8 | . 1 . . . . 4 3 Investigation 3 | . 1 . . . . 1 1 Extermination 4 | . . . . . . 3 1 Reinforcement 1 | . . . . . . . 1 Assault . | . . . . . . . . Garrison . | . . . . . . . . Intercept . | . . . . . . . . Searches Triggered . | . . . . . . . . Construction Impeded . | . . . . . . . . Haulers Reinforced . | . . . . . . . . Active Scanning Responses . | . . . . . . . . Cargo Convoy Interrupts . | . . . . . . . . Stealth | -11 -10 -10 -10 -9 -8 -7 -6 --------- Run | Scr Mat Min Exi Min Mat Fac Fac Distress Signals 2 | . 1 1 . . . . . Communications Jammed . | . . . . . . . . Distress Signals . | . . . . . . . . Times Spotted 35 | . 4 6 . . 1 18 6 Peak Tracking Total 5 | . 4 3 . . 1 5 3 Tactical Retreats 3 | . . . . . . 3 . Traps | -11 -10 -10 -10 -9 -8 -7 -6 ------- Run | Scr Mat Min Exi Min Mat Fac Fac Traps Triggered 10 | . 1 . . . 1 8 . Indirectly . | . . . . . . . . Trap Hack Attempts . | . . . . . . . . Triggered . | . . . . . . . . Disarmed . | . . . . . . . . Reprogrammed . | . . . . . . . . Reused . | . . . . . . . . Traps Extracted . | . . . . . . . . Installed . | . . . . . . . . Triggered . | . . . . . . . . Machines | -11 -10 -10 -10 -9 -8 -7 -6 ---------- Run | Scr Mat Min Exi Min Mat Fac Fac Machines Disabled 1 | . . . . . . . 1 Max in Single Turn 1 | . . . . . . . 1 Garrison Access 1 | . . . . . . . 1 Machines Sabotaged . | . . . . . . . . Garrisons Compromised . | . . . . . . . . Overloaded Fab Kills . | . . . . . . . . Hacking | -11 -10 -10 -10 -9 -8 -7 -6 --------- Run | Scr Mat Min Exi Min Mat Fac Fac Machines Accessed 14 | . 2 . 2 . 2 5 3 Terminals 8 | . 2 . . . 2 3 1 Fabricators 2 | . . . . . . 1 1 Repair Stations . | . . . . . . . . Recycling Units . | . . . . . . . . Scanalyzers 1 | . . . . . . 1 . Garrison Access 1 | . . . . . . . 1 Total Hacks 52 | . 3 . 24 . 6 13 6 Successful 36 | . 1 . 24 . 3 5 3 Failed 16 | . 2 . . . 3 8 3 Catastrophic 3 | . 1 . . . . 1 1 Database Lockouts . | . . . . . . . . Manual 16 | . 3 . 1 . 4 4 4 Terminals 19 | . 3 . . . 6 6 4 Fabricators 4 | . . . . . . 3 1 Repair Stations . | . . . . . . . . Recycling Units . | . . . . . . . . Scanalyzers 4 | . . . . . . 4 . Garrison Access 1 | . . . . . . . 1 Terminal Hacks 29 | . . . 24 . 2 3 . Record 23 | . . . 23 . . . . Prototype ID Bank 1 | . . . . . 1 . . Branch Access Points 2 | . . . . . 1 1 . Terminal Index 1 | . . . . . . 1 . Registered Components 1 | . . . . . . 1 . EX-Prototype ID Bank 1 | . . . 1 . . . . Fabricator Hacks 2 | . . . . . . 1 1 Network Status 1 | . . . . . . 1 . Build 1 | . . . . . . . 1 Repair Station Hacks . | . . . . . . . . Recycling Unit Hacks . | . . . . . . . . Scanalyzer 1 | . . . . . . 1 . Insert Component 1 | . . . . . . 1 . Garrison Access Hacks 1 | . . . . . . . 1 Seal Access 1 | . . . . . . . 1 Unauthorized Hacks 3 | . 1 . . . 1 . 1 Terminals 3 | . 1 . . . 1 . 1 Assimilate 1 | . . . . . . . 1 Operators 2 | . 1 . . . 1 . . Fabricators . | . . . . . . . . Repair Stations . | . . . . . . . . Recycling Units . | . . . . . . . . Scanalyzers . | . . . . . . . . Garrison Access . | . . . . . . . . Data Cores Recovered . | . . . . . . . . Used . | . . . . . . . . Hacking Detections 10 | . 1 . . . 2 5 2 Full Trace Events 2 | . . . . . . 1 1 Feedback Events . | . . . . . . . . Feedback Blocked . | . . . . . . . . Robot Schematics Acquired . | . . . . . . . . Robots Built . | . . . . . . . . Authchips . | . . . . . . . . Time . | . . . . . . . . Total Robot Build Rating . | . . . . . . . . Part Schematics Acquired . | . . . . . . . . Parts Built 1 | . . . . . . . 1 Authchips . | . . . . . . . . Time 53 | . . . . . . . 53 Total Part Build Rating 6 | . . . . . . . 6 Parts Repaired . | . . . . . . . . Time . | . . . . . . . . Parts Recycled . | . . . . . . . . Recycled Matter . | . . . . . . . . Retrieved Matter . | . . . . . . . . Retrieved Components . | . . . . . . . . Parts Scanalyzed 1 | . . . . . . 1 . Part Schematics Acquired . | . . . . . . . . Parts Damaged . | . . . . . . . . Bothacking | -11 -10 -10 -10 -9 -8 -7 -6 ------------ Run | Scr Mat Min Exi Min Mat Fac Fac Used RIF Installer . | . . . . . . . . Robots Hacked . | . . . . . . . . Non-combat . | . . . . . . . . Combat . | . . . . . . . . Robot Hacks Applied . | . . . . . . . . Relay Couplers Released . | . . . . . . . . Fabnet Peak Effective % . | . . . . . . . . Robots Rewired . | . . . . . . . . Allies Hacked . | . . . . . . . . Hacks Repelled . | . . . . . . . . Allies | -11 -10 -10 -10 -9 -8 -7 -6 -------- Run | Scr Mat Min Exi Min Mat Fac Fac Total Allies . | . . . . . . . . Largest Group . | . . . . . . . . Highest-Rated Group . | . . . . . . . . Highest-Rated Ally . | . . . . . . . . Total Orders 2 | . . . . . . . 2 EXPLORE 2 | . . . . . . . 2 Ally Attacks . | . . . . . . . . Total Damage . | . . . . . . . . Kills . | . . . . . . . . Allies Corrupted . | . . . . . . . . Allies Melted . | . . . . . . . . Intel | -11 -10 -10 -10 -9 -8 -7 -6 ------- Run | Scr Mat Min Exi Min Mat Fac Fac Robot Analysis Total . | . . . . . . . . Derelict Logs Recovered . | . . . . . . . . Drone Launches 2 | . . . . . . . 2 Drone Recoveries 1 | . . . . . . . 1 Exploration | -11 -10 -10 -10 -9 -8 -7 -6 ------------- Run | Scr Mat Min Exi Min Mat Fac Fac Turns Passed 4315 | 61 226 304 337 80 386 1740 1181 Spaces Moved 2689 | 47 170 188 275 63 293 1033 620 Core 5 | 5 . . . . . . . Treads 819 | . . . . . . 724 95 Legs 1865 | 42 170 188 275 63 293 309 525 Wheels . | . . . . . . . . Hover . | . . . . . . . . Flight . | . . . . . . . . Fastest Speed 50 | 50 120 120 90 120 120 120 125 Average Speed 128 | 112 120 126 118 120 120 137 128 Slowest Speed 190 | 120 120 190 120 120 120 190 145 Overloaded Moves . | . . . . . . . . Propulsion Burnouts . | . . . . . . . . Robots Hopped . | . . . . . . . . Cave-ins Triggered . | . . . . . . . . Exploration Rate (%) 29 | 4 31 58 62 17 29 19 13 Regions Visited 7 Branch Regions 3 Pre-discovered Areas 1 | . . . 1 . . . . Known Exits Taken . | . . . . . . . . Unknown Exits Taken 7 | 1 1 1 1 1 1 1 . Scrap Searched 1 | . . 1 . . . . . Spaces Dug . | . . . . . . . . Terrain Destroyed 6 | . . 2 . . . 2 2 Melee . | . . . . . . . . Projectile 6 | . . 2 . . . 2 2 AOE . | . . . . . . . . Terrain Rammed . | . . . . . . . . Walls Destroyed . | . . . . . . . . Machines Disabled . | . . . . . . . . Actions | -11 -10 -10 -10 -9 -8 -7 -6 --------- Run | Scr Mat Min Exi Min Mat Fac Fac Total 3333 | 52 179 218 287 67 320 1249 961 Wait 392 | . 1 . . 4 1 92 294 Move 2682 | 46 169 187 274 62 292 1032 620 Hop . | . . . . . . . . Pick Up 65 | . 2 2 1 1 15 32 12 Fast Attach 33 | 6 . 3 1 . 2 20 1 Attach 20 | . . 4 3 . 1 8 4 Detach 6 | . . 1 3 . . 1 1 Swap 18 | . 1 1 2 . 3 6 5 Drop 11 | . . . 3 . 2 4 2 Fire 68 | . 6 20 . . . 20 22 Melee 35 | . . . . . 4 31 . Ram . | . . . . . . . . Kick . | . . . . . . . . Crush 3 | . . . . . . 3 . Escape Stasis . | . . . . . . . . Rewire . | . . . . . . . . Trap . | . . . . . . . . Miscellaneous . | . . . . . . . . Route ------- -11/Scrapyard -10/Materials -10/Mines (discovered 2 exits: [*Mat] / *Exi) -10/Exiles (discovered 2 exits: [*Min x2]) -9/Mines -8/Materials (discovered 2 exits: *Fac / Sto) -7/Factory (discovered 3 exits: *Fac / Low x2) -6/Factory History --------- Turn | Location | Event 3 | -11/Scrapyard | Discovered new exit (range 16) 62 | -11/Scrapyard | Entered Materials 247 | -10/Materials | Discovered new exit (range 9) 288 | -10/Materials | Entered Mines 323 | -10/Mines | Build established: Mutant 456 | -10/Mines | Discovered new exit (range 9) 497 | -10/Mines | Core integrity fell below 50% 507 | -10/Mines | Destroyed YI-UF0 529 | -10/Mines | Lost 6 parts (1p3n2w) 586 | -10/Mines | Deemed a non-threat by the Exiles lab entrance 587 | -10/Mines | Discovered new exit (range 5) 592 | -10/Mines | Entered Exiles 608 | -10/Exiles | Discovered new exit (range 16) 621 | -10/Exiles | Met 8R-AWN 642 | -10/Exiles | Met EX-HEX 696 | -10/Exiles | Met EX-BIN 716 | -10/Exiles | Aligned with FarCom system 717 | -10/Exiles | Given EX-Vault access code 745 | -10/Exiles | Opened EX-Vault 751 | -10/Exiles | Found Prototype Leg 751 | -10/Exiles | Identified Potential Leg 754 | -10/Exiles | Found Potential Leg 774 | -10/Exiles | Found Lightpack 2.0 801 | -10/Exiles | Warned to stay clear of 0b10 Research branches 841 | -10/Exiles | Met EX-DEC 849 | -10/Exiles | Learned location of Zion (-7) 913 | -10/Exiles | Discovered new exit (range 11) 929 | -10/Exiles | Left Exiles lab with Lightpack 2.0 929 | -10/Exiles | Entered Mines 995 | -9/Mines | Discovered new exit (range 5) 1004 | -9/Mines | Received a Rocket Launcher from a helpful Derelict 1009 | -9/Mines | Entered Materials 1009 | -8/Materials | Evolved 4 slots: Propulsion x2, Utility x2 1103 | -8/Materials | Identified exit to Storage 1314 | -8/Materials | Build established: Hauler-Mutant 1340 | -8/Materials | Discovered new exit (range 16) 1395 | -8/Materials | Entered Factory 1395 | -7/Factory | Evolved 2 slots: Utility x2 1799 | -7/Factory | Lost 3 parts (2n1w) 1897 | -7/Factory | Lost 3 parts (1p2n) 2173 | -7/Factory | Discovered new exit (range 10) 2835 | -7/Factory | Identified exit to Lower Caves 3135 | -7/Factory | Entered another Factory area 3135 | -6/Factory | Evolved 2 slots: Utility x2 3205 | -6/Factory | Fabricated Imp. Powered Armor? 4316 | -6/Factory | Self-destructed Last Messages --------------- 04152_ System corrupted: FCS attempts to trigger Adv. Assault Cannon. 04152_ System corrupted: Adv. Assault Cannon misfires. 04152_ Destroyed Welding Torch. 04152_ U-05 Engineer suffers critical hit (Blast). 04152_ Destroyed Terrain Scanner. 04170_ System corrupted: Energy discharge (-98). 04191_ ALERT: Cargo convoy en route, clear transfer corridor. 04222_ Acquired 6 matter. 04244_ GHBF A|O|SNMGQV %RNUWI16SQ&7UEA%U5 04249_ Y-54 Guardian destroyed. 04254_ Acquired 33 matter. 04257_ U-05 Engineer builds a Door. 04311_ O-24 Administrator: "IFF HANDSHAKE FAILED. SECURING TERMINAL." 04312_ Connecting with Terminal... >>Trojan(Assimilate) Trojan loaded successfully. Testing... System interface override in place. 04312_ ALERT: Suspicious activity at Terminal F019. Dispatching Investigation squad. Map ----- +----------------------------------------------------+ | ???????????????????????# "" # """" | | ???????????????????????# "" # """" | | ???????????????????????# " + """" | | ?????????????????###+#?# # ^ """" | | ?????????######### # # """" | | ?????? #% # """" | | ?????? / ### """" # | | ?????? # % #?# # | | ?????????######### # #?# """" # | | ?????????????????## ?##############?# """" # | | ??????????????????# ??# #??????# """" # | | ??????????????????# ???# #??????# """" # | | ??????????????????# ???# #??????# """" # | | ??????????????????# ????# #??????# ^"""" # | | ??????????????????# ????# #??????# """" # | | ??????????????????#?????# ! #??????# # | | ????????????????????????# ######## """" # | | ????????????????????????# # # """" # | | ????????????????????????# # """"# """" # | | ????????????????????????# [ + """"# """" # | | ????????????????????????# # """"# """" # | | ??????????????????+?????# # """"# """" # | | ??????????????????# ???# ! # # """" | | ?????????????????## ??# ####+### | | ?????????????????# #######+## # | | ?????????????????# "" o@ # % | | ?????????????????# "T u %[ | | ?????????????????# ########+### | | ?????????????????# ####"A#### ## [ | | ?????????????????###+##???#"T#??######## % % | | ??????????????????????????####?????????# | | ???????????????????????????????????????# | | ???????????????????????????????????????# | | ???????????????????????????????????????# | | ???????????????????????????????????????########### | | | | | | | | | | | | | | | | | | | | | | | | | | | | | | | +----------------------------------------------------+ Best States ------------- Heat Dissipation 56 Energy Generation 16 Energy Capacity 290 Matter Stores 300 Matter Capacity 300 Sight Range 18 Terrain Scan Density 10 Armor Coverage 450 Resistance: TH 15 Evasion (%) 55 Recoil Reduction 4 Offensive Hacking 10 Defensive Hacking 10 Trap Extractor Capacity 6 Item Schematics ----------------- None Robot Schematics ------------------ None Fabricated ------------ Imp. Powered Armor | x1 | -6/Factory | Preloaded Alien Tech Used ----------------- None Achievements -------------- Packrat Challenges ------------ None Game ------ Seed AntimissileAssaultBoregun Manual? 0 Play Time 00:46:14 Cumulative 27.0 hours Start 2022.09.27 @ 03:03:51 End 2022.09.27 @ 15:18:20 Sessions 3 Manual Loads 0 Difficulty Rogue Special Mode None Game No. 26 Rogue 26 Adventurer 0 Explorer 0 Win Type - Total 0 Types 0/0/0/0/0/0/0/0/0 Lore% 23 Gallery% 26 Achievement% 21 Wizard Run 0 Options --------- ASCII 1 Keyboard 1 Movement Numpad Keybinds 0 Fullscreen 1 Font 18/SmallcapsGlow Map View 76x50 Tactical HUD 1 Map Filters NONE Filters NONE Steam 1 RUN: 00f0dfe9-02fb-401f-b59a-475c6ee504b6